fUSD/lending_fUSD_20260128
["ID","MTS","AMOUNT","RATE_DAILY","PERIOD"]
[403837026,1769583036997,547.19568063,0.00014977,2]
[403837027,1769583037057,547.19568063,0.00014977,2]
[403837028,1769583037131,547.19568063,0.00014977,2]
[403837029,1769583037192,547.19568063,0.00014977,2]
[403837030,1769583037274,547.19568063,0.00014977,2]
[403837031,1769583037330,547.19568063,0.00014977,2]
[403837032,1769583037386,547.19568063,0.00014977,2]
[403837033,1769583037451,547.19568063,0.00014977,2]
[403837034,1769583037515,547.19568063,0.00014977,2]
[403837035,1769583037568,547.19568063,0.00014977,2]
[403837036,1769583037645,547.19568063,0.00014977,2]
[403837037,1769583037695,547.19568063,0.00014977,2]
[403837038,1769583037760,547.19568063,0.00014977,2]
[403837039,1769583037808,547.19568063,0.00014977,2]
[403837040,1769583037869,547.19568063,0.00014977,2]
[403837041,1769583037933,547.19568063,0.00014977,2]
[403837043,1769583037998,547.19568063,0.00014977,2]
[403837044,1769583038111,330.78730602,0.00014913,2]
[403837045,1769583038142,169.21269398,0.00014913,2]
[403837046,1769583038191,547.19568063,0.00014977,2]
[403837047,1769583038240,-620.70469142,0.00014978,2]
[403837048,1769583038261,-159369.05247678,0.00014978,2]
[403837049,1769583038273,-386.1649995,0.00014978,2]
[403837050,1769583038286,-828.03737144,0.00014978,2]
[403837051,1769583038299,-1103.16022683,0.00014978,2]
[403837052,1769583038311,-1128.25873982,0.00014978,2]
[403837053,1769583038324,-1523.42760257,0.00014978,2]
[403837054,1769583038336,-2047.57159741,0.00014978,2]
[403837069,1769583040552,-1729.9999,0.00014978,2]
[403837070,1769583040563,-395.92311807,0.00014978,2]
[403837071,1769583040578,-315.32000001,0.00014978,2]
[403837072,1769583040637,-843.40981153,0.00014978,2]
[403837073,1769583040648,-890.21798263,0.00014978,2]
[403837074,1769583040706,-434181.94598301,0.00014978,2]
[403837075,1769583040716,-500.0,0.00014995,2]
[403837076,1769583040726,-500.0,0.00014995,2]
[403837077,1769583040735,-150.0,0.00014995,2]
[403837078,1769583040745,-721.0,0.00014995,2]
[403837079,1769583040755,-150.70133408,0.00014995,2]
[403837080,1769583040764,-500.0,0.00014995,2]
[403837081,1769583040774,-500.0,0.00014995,2]
[403837083,1769583040784,-150.0,0.00014995,2]
[403837084,1769583040793,-500.0,0.00014995,2]
[403837085,1769583040803,-500.0,0.00014995,2]
[403837086,1769583040812,-500.0,0.00014995,2]
[403837087,1769583040822,-500.0,0.00014995,2]
[403837088,1769583040831,-500.0,0.00014995,2]
[403837089,1769583040841,-150.0,0.00014995,2]
[403837090,1769583040851,-500.0,0.00014995,2]
[403837091,1769583040861,-249.13238104,0.00014995,2]
[403837092,1769583040871,-150.0,0.00014995,2]
[403837093,1769583040880,-150.0,0.00014995,2]
[403837094,1769583040889,-150.0,0.00014995,2]
[403837095,1769583040899,-500.0,0.00014995,2]
[403837096,1769583040909,-500.0,0.00014995,2]
[403837097,1769583040919,-500.0,0.00014995,2]
[403837098,1769583040929,-500.0,0.00014995,2]
[403837100,1769583040938,-150.0,0.00014995,2]
[403837103,1769583040948,-150.0,0.00014995,2]
[403837106,1769583040957,-161.0053,0.00015013,2]
[403837108,1769583040967,-89241.6055,0.00015013,2]
[403837110,1769583040976,-248.8521,0.00015013,2]
[403837112,1769583040985,-250.0,0.00015018,2]
[403837114,1769583040995,-195.0,0.00015024,2]
[403837116,1769583041004,-346.37974465,0.00015033,2]
[403837118,1769583041014,-600.0,0.00015035,2]
[403837120,1769583041023,-195.0,0.00015043,2]
[403837122,1769583041032,-500.0,0.0001505,2]
[403837124,1769583041041,-500.0,0.0001505,2]
[403837126,1769583041051,-721.0,0.0001505,2]
[403837128,1769583041060,-500.0,0.0001505,2]
[403837130,1769583041070,-150.0,0.0001505,2]
[403837132,1769583041079,-500.0,0.0001505,2]
[403837134,1769583041089,-502.30791208,0.0001505,2]
[403837136,1769583041098,-500.0,0.0001505,2]
[403837138,1769583041107,-502.30789836,0.0001505,2]
[403837140,1769583041116,-500.0,0.0001505,2]
[403837142,1769583041125,-500.0,0.0001505,2]
[403837144,1769583041135,-150.0,0.0001505,2]
[403837146,1769583041144,-500.0,0.0001505,2]
[403837148,1769583041153,-281.4338574,0.0001505,2]
[403837150,1769583041163,-500.0,0.0001505,2]
[403837152,1769583041172,-500.0,0.0001505,2]
[403837154,1769583041181,-500.0,0.0001505,2]
[403837156,1769583041190,-500.0,0.0001505,2]
[403837158,1769583041199,-600.0,0.00015052,2]
[403837160,1769583041209,-201.55532227,0.00015052,2]
[403837162,1769583041218,-300.0,0.00015056,2]
[403837164,1769583041227,-500.0,0.00015058,2]
[403837166,1769583041236,-500.0,0.00015058,2]
[403837168,1769583041245,-150.0,0.00015058,2]
[403837170,1769583041254,-628.19090217,0.00015058,2]
[403837172,1769583041264,-500.0,0.00015058,2]
[403837174,1769583041273,-150.0,0.00015058,2]
[403837176,1769583041282,-500.0,0.00015058,2]
[403837177,1769583041291,-463.72397762,0.00015059,2]
[403837178,1769583041300,-12243.04337462,0.00015067,2]
[403837179,1769583041309,-14322.55606344,0.00015067,2]
[403837181,1769583041318,-863.95,0.00015072,2]
[403837183,1769583041328,-244.91413682,0.00015078,2]
[403837185,1769583041337,-309.21588635,0.00015103,2]
[403837188,1769583041346,-180.99482864,0.00015103,2]
[403837189,1769583041356,-342.77884368,0.00015103,2]
[403837192,1769583041367,-469.29210418,0.00015103,2]
[403837194,1769583041376,-500.0,0.00015103,2]
[403837195,1769583041385,-500.0,0.00015103,2]
[403837198,1769583041396,-277.82444767,0.00015103,2]
[403837199,1769583041406,-200.0,0.00015104,2]
[403837200,1769583041417,-500.0,0.00015104,2]
[403837201,1769583041429,-500.0,0.00015104,2]
[403837202,1769583041440,-500.0,0.00015104,2]
[403837203,1769583041449,-200.0,0.00015104,2]
[403837204,1769583041458,-500.0,0.00015104,2]
[403837205,1769583041468,-500.0,0.00015104,2]
[403837206,1769583041477,-160.74119729,0.00015104,2]
[403837207,1769583041486,-500.0,0.00015104,2]
[403837208,1769583041494,-500.0,0.00015104,2]
[403837209,1769583041506,-513.90151106,0.00015104,2]
[403837210,1769583041516,-500.0,0.00015104,2]
[403837211,1769583041526,-500.0,0.00015104,2]
[403837212,1769583041536,-500.0,0.00015104,2]
[403837213,1769583041547,-500.0,0.00015104,2]
[403837214,1769583041556,-151.0,0.00015104,2]
[403837215,1769583041566,-500.0,0.00015104,2]
[403837216,1769583041576,-202.2917898,0.00015104,2]
[403837217,1769583041585,-500.0,0.00015104,2]
[403837218,1769583041595,-151.0,0.00015104,2]
[403837219,1769583041604,-500.0,0.00015104,2]
[403837220,1769583041613,-151.0,0.00015104,2]
[403837221,1769583041622,-500.0,0.00015104,2]
[403837222,1769583041631,-500.0,0.00015104,2]
[403837223,1769583041641,-151.0,0.00015104,2]
[403837224,1769583041650,-500.0,0.00015104,2]
[403837225,1769583041659,-151.0,0.00015104,2]
[403837226,1769583041669,-151.0,0.00015104,2]
[403837227,1769583041678,-429.32655419,0.00015104,2]
[403837228,1769583041687,-151.0,0.00015104,2]
[403837229,1769583041697,-151.0,0.00015104,2]
[403837230,1769583041706,-151.0,0.00015104,2]
[403837231,1769583041715,-151.0,0.00015104,2]
[403837232,1769583041724,-151.0,0.00015104,2]
[403837233,1769583041733,-151.0,0.00015104,2]
[403837234,1769583041742,-151.0,0.00015104,2]
[403837235,1769583041751,-151.0,0.00015104,2]
[403837236,1769583041761,-151.0,0.00015104,2]
[403837237,1769583041769,-151.0,0.00015104,2]
[403837238,1769583041778,-151.0,0.00015104,2]
[403837239,1769583041787,-151.0,0.00015104,2]
[403837240,1769583041796,-151.0,0.00015104,2]
[403837241,1769583041805,-151.0,0.00015104,2]
[403837242,1769583041814,-151.0,0.00015104,2]
[403837243,1769583041823,-151.0,0.00015104,2]
[403837244,1769583041833,-151.0,0.00015104,2]
[403837245,1769583041842,-151.0,0.00015104,2]
[403837246,1769583041852,-151.0,0.00015104,2]
[403837247,1769583041861,-151.0,0.00015104,2]
[403837248,1769583041870,-151.0,0.00015104,2]
[403837249,1769583041882,-151.0,0.00015104,2]
[403837250,1769583041893,-151.0,0.00015104,2]
[403837251,1769583041904,-151.0,0.00015104,2]
[403837252,1769583041915,-154.12320285,0.00015104,2]
[403837253,1769583041925,-500.0,0.00015105,2]
[403837254,1769583041936,-223.82378677,0.00015105,2]
[403837255,1769583041946,-721.0,0.00015105,2]
[403837256,1769583041955,-500.0,0.00015105,2]
[403837257,1769583041965,-200.0,0.00015105,2]
[403837258,1769583041976,-500.0,0.00015105,2]
[403837259,1769583041987,-500.0,0.00015105,2]
[403837260,1769583041997,-500.0,0.00015105,2]
[403837261,1769583042006,-500.0,0.00015105,2]
[403837262,1769583042016,-150.0,0.00015105,2]
[403837263,1769583042026,-500.0,0.00015105,2]
[403837264,1769583042035,-500.0,0.00015105,2]
[403837265,1769583042045,-500.0,0.00015105,2]
[403837266,1769583042055,-500.0,0.00015105,2]
[403837267,1769583042064,-500.0,0.00015105,2]
[403837268,1769583042075,-925.51190611,0.00015112,2]
[403837269,1769583042086,-500.0,0.00015112,2]
[403837270,1769583042095,-500.0,0.00015112,2]
[403837271,1769583042105,-500.0,0.00015112,2]
[403837272,1769583042114,-500.0,0.00015112,2]
[403837273,1769583042123,-500.0,0.00015112,2]
[403837274,1769583042133,-500.0,0.00015112,2]
[403837275,1769583042143,-500.0,0.00015112,2]
[403837276,1769583042152,-500.0,0.00015112,2]
[403837277,1769583042163,-500.0,0.00015112,2]
[403837278,1769583042172,-500.0,0.00015112,2]
[403837279,1769583042181,-500.0,0.00015112,2]
[403837280,1769583042191,-524.93822417,0.00015112,2]
[403837281,1769583042201,-500.0,0.00015112,2]
[403837282,1769583042210,-500.0,0.00015112,2]
[403837283,1769583042220,-500.0,0.00015112,2]
[403837284,1769583042230,-500.0,0.00015112,2]
[403837285,1769583042240,-500.0,0.00015112,2]
[403837286,1769583042250,-500.0,0.00015112,2]
[403837287,1769583042260,-560.97832733,0.00015112,2]
[403837288,1769583042270,-502.53550633,0.00015112,2]
[403837289,1769583042281,-500.0,0.00015112,2]
[403837290,1769583042291,-500.0,0.00015112,2]
[403837291,1769583042301,-500.0,0.00015112,2]
[403837292,1769583042310,-504.1508484,0.00015112,2]
[403837293,1769583042320,-500.0,0.00015112,2]
[403837294,1769583042329,-500.0,0.00015112,2]
[403837295,1769583042339,-500.0,0.00015112,2]
[403837296,1769583042349,-500.0,0.00015112,2]
[403837297,1769583042358,-192.79862973,0.00015112,2]
[403837298,1769583042368,-500.0,0.00015112,2]
[403837299,1769583042378,-500.0,0.00015112,2]
[403837300,1769583042388,-500.0,0.00015112,2]
[403837301,1769583042397,-503.01886942,0.00015112,2]
[403837302,1769583042407,-500.0,0.00015112,2]
[403837303,1769583042417,-500.0,0.00015112,2]
[403837304,1769583042429,-500.0,0.00015112,2]
[403837305,1769583042438,-500.0,0.00015112,2]
[403837306,1769583042447,-500.0,0.00015112,2]
[403837307,1769583042456,-500.0,0.00015112,2]
[403837308,1769583042467,-500.0,0.00015112,2]
[403837309,1769583042479,-500.0,0.00015112,2]
[403837310,1769583042488,-500.0,0.00015112,2]
[403837311,1769583042499,-500.0,0.00015112,2]
[403837312,1769583042508,-500.0,0.00015112,2]
[403837313,1769583042517,-500.0,0.00015112,2]
[403837314,1769583042526,-500.0,0.00015112,2]
[403837315,1769583042535,-500.0,0.00015112,2]
[403837316,1769583042545,-500.0,0.00015112,2]
[403837317,1769583042554,-188.57581573,0.00015112,2]
[403837318,1769583042563,-500.0,0.00015112,2]
[403837319,1769583042572,-500.0,0.00015112,2]
[403837320,1769583042581,-208.46996814,0.00015112,2]
[403837321,1769583042590,-500.0,0.00015113,2]
[403837322,1769583042600,-500.0,0.00015113,2]
[403837323,1769583042610,-200.0,0.00015113,2]
[403837324,1769583042619,-197.11274322,0.00015113,2]
[403837325,1769583042628,-500.0,0.00015113,2]
[403837326,1769583042638,-721.0,0.00015159,2]
[403837327,1769583042649,-500.0,0.00015159,2]
[403837328,1769583042659,-500.0,0.00015159,2]
[403837329,1769583042669,-500.0,0.00015159,2]
[403837330,1769583042678,-500.0,0.00015159,2]
[403837331,1769583042688,-215.63318921,0.00015159,2]
[403837332,1769583042698,-500.0,0.00015159,2]
[403837333,1769583042707,-500.0,0.00015159,2]
[403837334,1769583042717,-500.0,0.00015159,2]
[403837335,1769583042727,-465.49006321,0.00015159,2]
[403837336,1769583042820,-500.0,0.00015159,2]
[403837337,1769583042830,-500.0,0.00015167,2]
[403837338,1769583042840,-500.0,0.00015167,2]
[403837339,1769583042849,-250.0,0.00015167,2]
[403837340,1769583042858,-1000.0,0.00015178,2]
[403837341,1769583042867,-20000.02,0.00015178,2]
[403837342,1769583042876,-465.0,0.0001521,2]
[403837343,1769583042886,-721.0,0.00015214,2]
[403837344,1769583042896,-500.0,0.00015214,2]
[403837345,1769583042905,-500.0,0.00015214,2]
[403837346,1769583042915,-500.0,0.00015214,2]
[403837347,1769583042925,-500.0,0.00015214,2]
[403837348,1769583042934,-262.32249886,0.00015214,2]
[403837349,1769583042943,-460.0,0.00015214,2]
[403837350,1769583042953,-500.0,0.00015214,2]
[403837351,1769583042964,-500.0,0.00015214,2]
[403837352,1769583042975,-1191.0,0.00015219,2]
[403837353,1769583042986,-500.0,0.00015222,2]
[403837354,1769583042995,-500.0,0.00015222,2]
[403837355,1769583043006,-1258.0,0.0001525,2]
[403837356,1769583043018,-1054.21579402,0.00015266,2]
[403837357,1769583043029,-721.0,0.00015269,2]
[403837358,1769583043040,-150.0,0.00015269,2]
[403837359,1769583043051,-500.0,0.00015269,2]
[403837360,1769583043059,-500.0,0.00015269,2]
[403837361,1769583043068,-376.50115977,0.00015269,2]
[403837362,1769583043077,-500.0,0.00015277,2]
[403837363,1769583043086,-261.65460803,0.00015277,2]
[403837364,1769583043095,-500.0,0.00015277,2]
[403837365,1769583043105,-500.0,0.00015277,2]
[403837366,1769583043115,-355.21403355,0.00015277,2]
[403837367,1769583043124,-500.0,0.00015277,2]
[403837368,1769583043133,-500.0,0.00015277,2]
[403837369,1769583043143,-500.0,0.00015277,2]
[403837370,1769583043152,-509.24863129,0.00015277,2]
[403837371,1769583043162,-500.0,0.00015277,2]
[403837372,1769583043171,-500.0,0.00015277,2]
[403837373,1769583043182,-500.0,0.00015277,2]
[403837374,1769583043191,-508.81411293,0.00015277,2]
[403837375,1769583043201,-500.0,0.00015277,2]
[403837376,1769583043210,-261.56434182,0.00015277,2]
[403837377,1769583043220,-500.0,0.00015277,2]
[403837378,1769583043229,-500.0,0.00015277,2]
[403837379,1769583043238,-500.0,0.00015277,2]
[403837381,1769583043247,-500.0,0.00015277,2]
[403837382,1769583043256,-511.31408016,0.00015277,2]
[403837383,1769583043267,-500.0,0.00015277,2]
[403837384,1769583043278,-500.0,0.00015277,2]
[403837385,1769583043288,-500.0,0.00015277,2]
[403837386,1769583043296,-505.25985353,0.00015277,2]
[403837387,1769583043305,-505.07555543,0.00015277,2]
[403837388,1769583043314,-500.0,0.00015277,2]
[403837389,1769583043323,-500.0,0.00015277,2]
[403837390,1769583043332,-265.38774742,0.00015277,2]
[403837391,1769583043341,-500.0,0.00015277,2]
[403837392,1769583043351,-504.97053901,0.00015277,2]
[403837393,1769583043360,-151.0,0.00015294,2]
[403837394,1769583043370,-151.0,0.00015294,2]
[403837395,1769583043379,-445.90348059,0.00015295,2]
[403837396,1769583043389,-721.0,0.00015324,2]
[403837397,1769583043399,-500.0,0.00015324,2]
[403837398,1769583043409,-500.0,0.00015324,2]
[403837399,1769583043418,-363.51122534,0.00015332,2]
[403837400,1769583043431,-500.0,0.00015332,2]
[403837401,1769583043444,-863.95,0.00015345,2]
[403837402,1769583043453,-721.0,0.00015379,2]
[403837403,1769583043462,-500.0,0.00015379,2]
[403837404,1769583043472,-500.0,0.00015379,2]
[403837405,1769583043482,-12243.04337453,0.00015382,2]
[403837406,1769583043491,-14322.5560634,0.00015382,2]
[403837407,1769583043501,-721.0,0.00015433,2]
[403837408,1769583043511,-500.0,0.00015433,2]
[403837409,1769583043520,-603.52186183,0.00015433,2]
[403837410,1769583043529,-500.0,0.00015478,2]
[403837411,1769583043537,-290.61766379,0.00015478,2]
[403837412,1769583043547,-500.0,0.00015478,2]
[403837413,1769583043556,-500.0,0.00015478,2]
[403837414,1769583043565,-500.0,0.00015478,2]
[403837415,1769583043575,-504.91559011,0.00015478,2]
[403837416,1769583043584,-500.0,0.00015478,2]
[403837417,1769583043593,-537.84011812,0.00015478,2]
[403837418,1769583043602,-500.0,0.00015478,2]
[403837419,1769583043613,-623.96318199,0.00015478,2]
[403837420,1769583043622,-500.0,0.00015478,2]
[403837421,1769583043631,-500.0,0.00015478,2]
[403837422,1769583043640,-500.0,0.00015478,2]
[403837423,1769583043649,-500.0,0.00015478,2]
[403837424,1769583043658,-528.82732304,0.00015478,2]
[403837425,1769583043667,-500.0,0.00015478,2]
[403837426,1769583043676,-500.0,0.00015478,2]
[403837427,1769583043685,-500.0,0.00015478,2]
[403837428,1769583043694,-500.0,0.00015478,2]
[403837429,1769583043703,-581.45652,0.00015487,2]
[403837430,1769583043712,-778.86477401,0.00015487,2]
[403837431,1769583043721,-721.0,0.00015488,2]
[403837432,1769583043730,-166.66,0.00015516,2]
[403837433,1769583043739,-721.0,0.00015543,2]
[403837434,1769583043748,-721.0,0.00015598,2]
[403837435,1769583043758,-508.90679538,0.00015606,2]
[403837436,1769583043767,-863.95,0.00015619,2]
[403837437,1769583043776,-206.24263098,0.00015652,2]
[403837438,1769583043785,-500.0,0.00015652,2]
[403837439,1769583043794,-200.0,0.00015652,2]
[403837440,1769583043803,-721.0,0.00015653,2]
[403837441,1769583043813,-12243.04337453,0.00015697,2]
[403837442,1769583043822,-14322.5560634,0.00015697,2]
[403837443,1769583043831,-500.0,0.00015706,2]
[403837444,1769583043840,-500.0,0.00015706,2]
[403837445,1769583043849,-721.0,0.00015707,2]
[403837446,1769583043858,-205.99,0.00015756,2]
[403837447,1769583043867,-721.0,0.00015762,2]
[403837448,1769583043876,-721.0,0.00015817,2]
[403837449,1769583043885,-166.66,0.00015843,2]
[403837450,1769583043894,-721.0,0.00015872,2]
[403837451,1769583043903,-863.95,0.00015893,2]
[403837452,1769583043912,-3000.0,0.000159,5]
[403837453,1769583043920,-721.0,0.00015927,2]
[403837454,1769583043929,-721.0,0.00015981,2]
[403837455,1769583043938,-187.2,0.00015993,2]
[403837456,1769583043947,-12243.04337453,0.00016011,2]
[403837457,1769583043956,-14322.5560634,0.00016011,2]
[403837458,1769583043965,-721.0,0.00016036,2]
[403837459,1769583043974,-1000.0,0.00016046,2]
[403837460,1769583043983,-721.0,0.00016091,2]
[403837461,1769583043991,-721.0,0.00016146,2]
[403837462,1769583044000,-1274.0,0.00016146,2]
[403837463,1769583044009,-863.95,0.00016167,2]
[403837464,1769583044018,-166.66,0.00016169,2]
[403837465,1769583044027,-500.0,0.000162,2]
[403837466,1769583044035,-721.0,0.000162,2]
[403837467,1769583044044,-742.35924827,0.00016255,2]
[403837468,1769583044054,-1176.74634017,0.00016295,2]
[403837469,1769583044063,-2075.92002826,0.00016295,2]
[403837470,1769583044072,-3105.45220965,0.00016295,2]
[403837471,1769583044081,-4201.7778,0.00016295,2]
[403837472,1769583044090,-12243.04337453,0.00016326,2]
[403837473,1769583044099,-14322.5560634,0.00016326,2]
[403837474,1769583044108,-173.57092729,0.00016373,2]
[403837475,1769583044117,-500.0,0.00016373,2]
[403837476,1769583044126,-501.27356282,0.00016373,2]
[403837477,1769583044135,-160.1775309,0.00016373,2]
[403837478,1769583044144,-502.66827993,0.00016373,2]
[403837479,1769583044154,-160.17647728,0.00016373,2]
[403837480,1769583044163,-502.97428002,0.00016373,2]
[403837481,1769583044172,-156.16956457,0.00016373,2]
[403837482,1769583044181,-500.93042604,0.00016373,2]
[403837483,1769583044190,-539.78935463,0.00016373,2]
[403837484,1769583044199,-500.0,0.00016373,2]
[403837485,1769583044208,-193.55647902,0.00016373,2]
[403837486,1769583044217,-500.0,0.00016421,2]
[403837487,1769583044226,-500.0,0.00016421,2]
[403837488,1769583044235,-1491.1,0.0001643,2]
[403837489,1769583044243,-298.742,0.00016437,2]
[403837490,1769583044252,-2395.93,0.00016438,2]
[403837491,1769583044261,-2395.93,0.00016438,2]
[403837492,1769583044270,-2395.93,0.00016438,2]
[403837493,1769583044279,-2395.93,0.00016438,2]
[403837494,1769583044288,-2395.93,0.00016438,2]
[403837495,1769583044296,-2395.93,0.00016438,2]
[403837496,1769583044306,-2395.93,0.00016438,2]
[403837497,1769583044315,-2395.93,0.00016438,2]
[403837498,1769583044324,-2395.93,0.00016438,2]
[403837499,1769583044333,-2395.93,0.00016438,2]
[403837500,1769583044343,-2395.93,0.00016438,2]
[403837501,1769583044351,-2395.93,0.00016438,2]
[403837502,1769583044360,-2395.93,0.00016438,2]
[403837503,1769583044370,-2395.93,0.00016438,2]
[403837504,1769583044380,-2395.93,0.00016438,2]
[403837505,1769583044389,-2395.93,0.00016438,2]
[403837506,1769583044398,-2395.93,0.00016438,2]
[403837507,1769583044407,-2395.93,0.00016438,2]
[403837508,1769583044416,-2395.93,0.00016438,2]
[403837509,1769583044425,-2395.93,0.00016438,2]
[403837510,1769583044438,-2395.93,0.00016438,2]
[403837511,1769583044448,-2395.93,0.00016438,2]
[403837512,1769583044458,-2395.93,0.00016438,2]
[403837513,1769583044467,-2396.0314044,0.00016438,2]
[403837514,1769583044476,-544.60815205,0.00016438,2]
[403837515,1769583044486,-500.0,0.00016438,2]
[403837516,1769583044495,-578.39080156,0.00016438,2]
[403837517,1769583044506,-500.0,0.00016438,2]
[403837518,1769583044515,-500.0,0.00016438,2]
[403837519,1769583044524,-500.0,0.00016438,2]
[403837520,1769583044534,-500.0,0.00016438,2]
[403837521,1769583044544,-500.0,0.00016438,2]
[403837522,1769583044553,-500.0,0.00016438,2]
[403837523,1769583044563,-500.0,0.00016438,2]
[403837524,1769583044572,-500.0,0.00016438,2]
[403837525,1769583044581,-500.0,0.00016438,2]
[403837526,1769583044590,-500.0,0.00016438,2]
[403837527,1769583044599,-500.0,0.00016438,2]
[403837528,1769583044608,-500.0,0.00016438,2]
[403837529,1769583044618,-500.0,0.00016438,2]
[403837530,1769583044627,-500.0,0.00016438,2]
[403837531,1769583044637,-500.0,0.00016438,2]
[403837532,1769583044647,-500.0,0.00016438,2]
[403837533,1769583044657,-500.0,0.00016438,2]
[403837534,1769583044667,-500.0,0.00016438,2]
[403837535,1769583044677,-863.95,0.00016441,2]
[403837536,1769583044687,-12694.28,0.00016466,2]
[403837537,1769583044697,-1680.0,0.00016475,2]
[403837538,1769583044706,-2500.0,0.00016476,2]
[403837539,1769583044717,-600.0,0.00016476,2]
[403837540,1769583044727,-5075.37527096,0.00016476,2]
[403837541,1769583044735,-195.0,0.00016476,2]
[403837542,1769583044746,-300.0,0.00016476,2]
[403837543,1769583044755,-300.0,0.00016476,2]
[403837544,1769583044764,-166.66,0.00016496,2]
[403837545,1769583044774,-600.0,0.00016514,2]
[403837546,1769583044784,-193.0,0.00016514,2]
[403837547,1769583044793,-195.0,0.00016514,2]
[403837548,1769583044802,-250.0,0.00016514,2]
[403837549,1769583044811,-2000.0,0.00016533,2]
[403837550,1769583044821,-2000.0,0.00016533,2]
[403837551,1769583044830,-2000.0,0.00016533,2]
[403837552,1769583044839,-2000.0,0.00016533,2]
[403837553,1769583044849,-2000.0,0.00016533,2]
[403837554,1769583044858,-2000.0,0.00016533,2]
[403837555,1769583044867,-2000.0,0.00016533,2]
[403837556,1769583044879,-414.896,0.00016533,2]
[403837557,1769583044888,-986.689,0.00016533,2]
[403837558,1769583044897,-1000.0,0.00016533,2]
[403837559,1769583044906,-1000.0,0.00016533,2]
[403837560,1769583044915,-1000.0,0.00016533,2]
[403837561,1769583044924,-1000.0,0.00016533,2]
[403837562,1769583044933,-1000.0,0.00016533,2]
[403837563,1769583044942,-500.0,0.00016535,2]
[403837564,1769583044951,-500.0,0.00016535,2]
[403837565,1769583044967,-1500.0,0.00016561,2]
[403837566,1769583044978,-12243.04337453,0.00016641,2]
[403837567,1769583044989,-14322.5560634,0.00016641,2]
[403837568,1769583045001,-578.20924308,0.00016692,2]
[403837569,1769583045011,-207.69124521,0.00016692,2]
[403837570,1769583045021,-500.0,0.00016692,2]
[403837571,1769583045031,-721.12765535,0.00016692,2]
[403837572,1769583045042,-174.61919141,0.00016692,2]
[403837573,1769583045052,-500.0,0.00016692,2]
[403837574,1769583045061,-250.0,0.00016692,2]
[403837575,1769583045070,-500.0,0.00016692,2]
[403837576,1769583045079,-854.2589148,0.00016692,2]
[403837577,1769583045088,-2000.0,0.00016692,2]
[403837578,1769583045097,-161.75816476,0.00016692,2]
[403837579,1769583045106,-522.5850038,0.00016692,2]
[403837580,1769583045117,-322.6107,0.00016692,2]
[403837581,1769583045127,-500.0,0.00016692,2]
[403837582,1769583045136,-500.0,0.00016692,2]
[403837583,1769583045145,-500.0,0.00016692,2]
[403837584,1769583045154,-500.0,0.00016692,2]
[403837585,1769583045163,-151.0,0.00016692,2]
[403837586,1769583045173,-500.0,0.00016692,2]
[403837587,1769583045183,-500.0,0.00016692,2]
[403837588,1769583045193,-3000.0,0.00016692,2]
[403837589,1769583045202,-381.30596867,0.00016692,2]
[403837590,1769583045211,-3000.0,0.00016692,2]
[403837591,1769583045221,-3000.0,0.00016692,2]
[403837592,1769583045230,-2000.0,0.00016692,2]